fUSD/lending_fUSD_20241202
["ID","MTS","AMOUNT","RATE_DAILY","PERIOD"]
[343940390,1733107838685,-929.61148634,7.9e-05,2]
[343940391,1733107838695,-300.0,7.919e-05,2]
[343940392,1733107838704,-7424.39341933,7.92e-05,2]
[343940414,1733107839108,-500.0,7.973e-05,2]
[343940415,1733107839132,-2293.668,7.974e-05,2]
[343940416,1733107839142,-200.0,7.98e-05,2]
[343940417,1733107839154,-200.0,7.98e-05,2]
[343940418,1733107839163,-1000.0,7.998e-05,2]
[343940419,1733107839173,-150.0,7.998e-05,2]
[343940420,1733107839182,-150.0,7.998e-05,2]
[343940422,1733107839192,-150.0,7.998e-05,2]
[343940424,1733107839202,-150.0,7.998e-05,2]
[343940426,1733107839211,-150.0,7.998e-05,2]
[343940428,1733107839220,-150.0,7.998e-05,2]
[343940430,1733107839230,-150.0,7.998e-05,2]
[343940432,1733107839240,-150.0,7.998e-05,2]
[343940433,1733107839254,-150.0,7.998e-05,2]
[343940434,1733107839271,-150.0,7.998e-05,2]
[343940435,1733107839281,-150.0,7.998e-05,2]
[343940436,1733107839291,-150.0,7.998e-05,2]
[343940437,1733107839302,-150.0,7.998e-05,2]
[343940438,1733107839311,-566.0,7.999e-05,2]
[343940439,1733107839321,-1261.0,7.999e-05,2]
[343940440,1733107839331,-541.446,7.999e-05,2]
[343940441,1733107839341,-563.0,7.999e-05,2]
[343940442,1733107839350,-1893.0,7.999e-05,2]
[343940443,1733107839359,-574.1,7.999e-05,2]
[343940444,1733107839373,-1252.0,7.999e-05,2]
[343940445,1733107839382,-976.0,7.999e-05,2]
[343940446,1733107839391,-3527.0,7.999e-05,2]
[343940447,1733107839401,-5962.0,7.999e-05,2]
[343940448,1733107839411,-150.0,7.999e-05,2]
[343940449,1733107839421,-3900.049,7.999e-05,2]
[343940450,1733107839430,-150.0,7.999e-05,2]
[343940451,1733107839439,-701.94,7.999e-05,2]
[343940452,1733107839449,-3221.04,7.999e-05,2]
[343940453,1733107839458,-15092.02911369,7.999e-05,2]
[343940454,1733107839467,-39869.3171082,8e-05,2]
[343940455,1733107839479,-12216.99232069,8e-05,2]
[343940456,1733107839490,-11945.88385,8e-05,2]
[343940457,1733107839501,-12434.35441547,8e-05,2]
[343940458,1733107839512,-918.803945,8e-05,2]
[343940459,1733107839523,-3610.2356189,8e-05,2]
[343940460,1733107839534,-401.67233061,8e-05,2]
[343940470,1733107841514,-5861.28,8e-05,2]
[343940471,1733107841549,-8995.76190556,8e-05,2]
[343940472,1733107841560,-823.10927634,8e-05,2]
[343940473,1733107841572,-36096.8444935,8e-05,2]
[343940474,1733107841584,-760.20306952,8e-05,2]
[343940475,1733107841595,-200332.96834744,8e-05,2]
[343940476,1733107841607,-849.41419005,8e-05,2]
[343940477,1733107841618,-1564.25660773,8e-05,2]
[343940478,1733107841629,-1007.52312096,8e-05,2]
[343940485,1733107843722,-837.74673292,7.9e-05,2]
[343940486,1733107843734,-1426.22040108,7.9e-05,2]
[343940487,1733107843921,-236.032866,7.9e-05,2]
[343940488,1733107843932,-933.967174,7.999e-05,2]
[343940489,1733107843946,-135.684826,7.999e-05,2]
[343940490,1733107843956,-233.36358163,8e-05,2]
[343940535,1733107846615,-11772.95709027,8e-05,2]
[343940536,1733107846627,-9935.07482076,8e-05,2]
[343940539,1733108133347,1000.0,4.01e-05,120]
[343940540,1733108189360,200.0,5e-05,30]
[343940541,1733108189399,200.0,5e-05,30]
[343940542,1733108189434,200.0,5e-05,30]
[343940543,1733108189469,200.0,5e-05,30]
[343940544,1733108189531,200.0,5e-05,30]
[343940545,1733108204842,285.91168631,0.00025,120]
[343940581,1733109031983,-2800.0,7.343e-05,2]
[343940582,1733109031995,-3324.45701858,7.343e-05,2]
[343940591,1733109037772,-1240.26924952,7.343e-05,2]
[343940597,1733109038070,-15128.1037319,7.343e-05,2]
[343940598,1733109038080,-314.39,7.363e-05,2]
[343940599,1733109038091,-2068.83,7.363e-05,2]
[343940600,1733109038101,-286.62467248,7.363e-05,2]
[343940601,1733109038111,-255.2,7.461e-05,2]
[343940602,1733109038121,-467.3,7.744e-05,2]
[343940603,1733109038130,-2500.0,7.899e-05,2]
[343940604,1733109038140,-434.7095,7.899e-05,2]
[343940605,1733109038149,-500.0,7.936e-05,2]
[343940606,1733109038159,-200.0,7.969e-05,2]
[343940607,1733109038170,-500.0,7.973e-05,2]
[343940608,1733109038180,-500.0,7.973e-05,2]
[343940609,1733109038191,-1834.935,7.974e-05,2]
[343940610,1733109038201,-200.0,7.974e-05,2]
[343940611,1733109038211,-150.0,7.997e-05,2]
[343940612,1733109038221,-150.0,7.998e-05,2]
[343940613,1733109038231,-150.0,7.998e-05,2]
[343940614,1733109038241,-150.0,7.998e-05,2]
[343940615,1733109038252,-150.0,7.998e-05,2]
[343940616,1733109038261,-150.0,7.998e-05,2]
[343940617,1733109038271,-150.0,7.998e-05,2]
[343940618,1733109038281,-150.0,7.998e-05,2]
[343940619,1733109038291,-150.0,7.998e-05,2]
[343940620,1733109038300,-150.0,7.998e-05,2]
[343940621,1733109038310,-150.0,7.998e-05,2]
[343940622,1733109038320,-192.20866117,7.998e-05,2]
[343940623,1733109038329,-157.36539139,7.998e-05,2]
[343940624,1733109038339,-150.0,7.999e-05,2]
[343940625,1733109038349,-546.644,7.999e-05,2]
[343940626,1733109038359,-1261.0,7.999e-05,2]
[343940627,1733109038368,-2002.0,7.999e-05,2]
[343940628,1733109038378,-1893.0,7.999e-05,2]
[343940629,1733109038387,-563.0,7.999e-05,2]
[343940630,1733109038397,-3527.0,7.999e-05,2]
[343940631,1733109038406,-976.0,7.999e-05,2]
[343940632,1733109038415,-1165.0,7.999e-05,2]
[343940633,1733109038425,-162.922,7.999e-05,2]
[343940634,1733109038435,-5962.0,7.999e-05,2]
[343940635,1733109038444,-4280.411,7.999e-05,2]
[343940636,1733109038456,-2000.0,7.999e-05,2]
[343940637,1733109038467,-171.72568001,7.999e-05,2]
[343940638,1733109038477,-3086.83,7.999e-05,2]
[343940639,1733109038487,-454854.58895939,7.999e-05,2]
[343940640,1733109038499,-9144.25664553,7.999e-05,2]
[343940641,1733109038511,-142694.76338073,7.999e-05,2]
[343940642,1733109038523,-9917.65189007,7.999e-05,2]
[343940643,1733109038534,-26547.05223,7.999e-05,2]
[343940647,1733109039674,-402.61500004,7.999e-05,2]
[343940648,1733109039687,-134698.10670806,7.999e-05,2]
[343940650,1733109039978,-486.40217459,7.999e-05,2]
[343940651,1733109039990,-3724.89491497,7.999e-05,2]
[343940652,1733109040001,-282.61749998,7.999e-05,2]
[343940653,1733109040012,-490.1416524,7.999e-05,2]
[343940654,1733109040023,-53907.44790285,7.999e-05,2]
[343940655,1733109040034,-72866.2593287,7.999e-05,2]
[343940659,1733109042640,-366.23746335,7.999e-05,2]
[343940667,1733109042988,-5420.415,7.999e-05,2]
[343940668,1733109043006,-2374.8040931,7.999e-05,2]
[343940669,1733109043025,-2188119.74447939,7.999e-05,2]
[343940670,1733109043043,-176754.22237425,7.999e-05,2]
[343940671,1733109043065,-704.07,7.999e-05,2]
[343940672,1733109043080,-2297274.40307071,8e-05,2]
[343940673,1733109043098,-449435.93894421,8e-05,2]
[343940674,1733109043117,-3984.6,8e-05,2]
[343940677,1733109043690,-387.292002,8e-05,2]
[343940678,1733109043817,-407689.98207638,8e-05,2]
[343940679,1733109043835,-1302.1840501,8e-05,2]
[343940680,1733109043852,-5830.01259267,8e-05,2]
[343940683,1733109047510,-937.8168787,8e-05,2]
[343940684,1733109047522,-2041.39999998,8e-05,2]
[343940685,1733109047567,-21664.23750584,8e-05,2]
[343940686,1733109047579,-2999.9999995,8e-05,2]
[343940687,1733109047591,-136253.12905179,8e-05,2]
[343940688,1733109047602,-607.135035,8e-05,2]
[343940689,1733109047614,-46387.15791171,8e-05,2]
[343940690,1733109048070,-617.5,8e-05,2]
[343940691,1733109071712,200.0,7.96e-05,30]
[343940692,1733109072249,200.0,7.96e-05,30]
[343940693,1733109072305,200.0,7.96e-05,30]
[343940694,1733109072343,200.0,7.96e-05,30]
[343940695,1733109072390,200.0,7.96e-05,30]
[343940696,1733109199548,200.0,7.912e-05,30]
[343940697,1733109199590,200.0,7.912e-05,30]
[343940698,1733109199638,200.0,7.912e-05,30]
[343940699,1733109199682,200.0,7.912e-05,30]
[343940700,1733109199735,200.0,7.912e-05,30]
[343940701,1733109258173,2000.0,7.498e-05,7]
[343940702,1733109261220,10000.0,0.00025,120]
[343940703,1733109517300,201.0,0.00025,120]
[343940704,1733109600603,684.25,7.158e-05,2]
[343940705,1733109610554,222.0,0.00025,120]
[343940706,1733109627702,661.0,0.00025,120]
[343940708,1733109767601,373.84,7.13e-05,2]
[343940709,1733109843413,500.0,7.133e-05,2]
[343940729,1733110069947,150.0,7.085e-05,2]
[343940730,1733110069968,150.0,7.085e-05,2]
[343940731,1733110069992,86.66,7.085e-05,2]
[343940736,1733110086807,200.0,7.05e-05,30]
[343940737,1733110086842,200.0,7.05e-05,30]
[343940738,1733110086882,200.0,7.05e-05,30]
[343940739,1733110086928,200.0,7.05e-05,30]
[343940740,1733110086980,200.0,7.05e-05,30]
[343940741,1733110123108,155.212607,0.00025,120]
[343940807,1733110233354,-250.0,7.166e-05,2]
[343940808,1733110233364,-5144.89644038,7.498e-05,7]
[343940809,1733110233377,-171.384169,7.498e-05,2]
[343940810,1733110233387,-422.0,7.585e-05,2]
[343940811,1733110233397,-1074.0,7.685e-05,2]
[343940812,1733110233407,-501.0,7.753e-05,2]
[343940813,1733110233418,-152.43,7.76e-05,2]
[343940814,1733110233429,-300.0,7.849e-05,2]
[343940815,1733110233439,-727.22,7.85e-05,2]
[343940816,1733110233449,-301.99,7.85e-05,2]
[343940817,1733110233460,-880.09,7.85e-05,2]
[343940818,1733110233471,-1000.0,7.9e-05,2]
[343940819,1733110233482,-327.23151802,7.9e-05,2]
[343940820,1733110233493,-414.6752,7.9e-05,2]
[343940821,1733110233504,-1000.0,7.9e-05,2]
[343940822,1733110233515,-2500.0,7.9e-05,2]
[343940823,1733110233525,-6945.41645814,7.956e-05,2]
[343940824,1733110233537,-1450.0,7.956e-05,2]
[343940858,1733110238063,-104.58354186,7.956e-05,2]
[343940859,1733110238073,-150.0,7.964e-05,2]
[343940860,1733110238084,-8500.0,7.965e-05,2]
[343940861,1733110238093,-577.77051472,7.973e-05,2]
[343940862,1733110238103,-8500.0,7.974e-05,2]
[343940863,1733110238114,-1633.64,7.978e-05,2]
[343940864,1733110238125,-8500.0,7.982e-05,2]
[343940865,1733110238138,-9666.45855418,7.988e-05,2]
[343940866,1733110238186,-1303.61,7.988e-05,2]
[343940867,1733110238199,-8173.10603958,7.988e-05,2]
[343940868,1733110238208,-8500.0,7.991e-05,2]
[343940869,1733110238218,-195.362,7.999e-05,2]
[343940870,1733110238227,-630.0,7.999e-05,2]
[343940871,1733110238236,-211.535,7.999e-05,2]
[343940872,1733110238245,-2001.0,7.999e-05,2]
[343940873,1733110238255,-1933.0,7.999e-05,2]
[343940874,1733110238265,-563.0,7.999e-05,2]
[343940875,1733110238274,-3758.0,7.999e-05,2]
[343940876,1733110238284,-831.0,7.999e-05,2]
[343940877,1733110238293,-1264.0,7.999e-05,2]
[343940878,1733110238303,-534.894,7.999e-05,2]
[343940879,1733110238313,-1068.957,7.999e-05,2]
[343940880,1733110238323,-3527.0,7.999e-05,2]
[343940881,1733110238332,-150.0,7.999e-05,2]
[343940882,1733110238342,-5962.0,7.999e-05,2]
[343940883,1733110238351,-1261.0,7.999e-05,2]
[343940884,1733110238361,-566.0,7.999e-05,2]
[343940885,1733110238370,-476.60893284,7.999e-05,2]
[343940886,1733110238381,-3435.58,7.999e-05,2]
[343940887,1733110238390,-695.56,7.999e-05,2]
[343940889,1733110238400,-314.94531427,7.999e-05,2]
[343940891,1733110238409,-3946.29971331,8e-05,2]
[343940893,1733110238421,-10042.61984196,8e-05,2]
[343940895,1733110238432,-29998.40000008,8e-05,2]
[343940897,1733110238443,-6167.6260654,8e-05,2]
[343940900,1733110240122,-713941.78403883,8e-05,2]
[343940901,1733110240135,-8245687.23649225,8e-05,2]
[343940902,1733110240147,-473.58204129,8e-05,2]
[343940903,1733110240158,-4307.78837452,8e-05,2]
[343940904,1733110240169,-1057.22895828,8e-05,2]
[343940905,1733110240180,-346947.23079977,8e-05,2]
[343940918,1733110242900,-150.549,7.999e-05,2]
[343940919,1733110242910,-928022.4900746,8e-05,2]
[343940920,1733110242925,-546014.49663461,8e-05,2]
[343940924,1733110243055,-1513.482,8e-05,2]
[343940925,1733110243068,-16673.64129891,8e-05,2]
[343940926,1733110243210,-461.12722029,8e-05,2]
[343940963,1733110245926,-19548.47224,8e-05,2]
[343940964,1733110245938,-1365.59759413,8e-05,2]
[343940965,1733110246111,-82837.03999996,8e-05,2]
[343940966,1733110246123,-37190.941397,8e-05,2]
[343940972,1733110321689,-471.65381147,7.8e-05,2]
[343940973,1733110332267,-250.0,7.654e-05,2]
[343940974,1733110383174,193.56438948,0.00025,120]
[343940975,1733110466630,-363.32,7.633e-05,2]
[343940976,1733110528262,3463855.76188493,0.00025,120]
[343940977,1733110542535,-150.0,7.735e-05,2]
[343940978,1733110825177,20000000.0,0.0001975,120]
[343940980,1733111135382,410.27,6.888e-05,2]
[343940981,1733111225021,200.0,6.854e-05,30]
[343940982,1733111225065,200.0,6.854e-05,30]
[343940983,1733111225115,338.33503552,6.854e-05,30]
[343941011,1733111433079,-150.0,7.711e-05,2]
[343941012,1733111433091,-150.0,7.716e-05,2]
[343941013,1733111433102,-150.0,7.724e-05,2]
[343941014,1733111433113,-150.0,7.727e-05,2]
[343941015,1733111433123,-114.05544689,7.734e-05,2]
[343941016,1733111433137,-35.94455311,7.734e-05,2]
[343941017,1733111433148,-150.0,7.736e-05,2]
[343941018,1733111433162,-150.0,7.738e-05,2]
[343941019,1733111433174,-150.0,7.739e-05,2]
[343941020,1733111433184,-150.0,7.742e-05,2]
[343941021,1733111433194,-150.0,7.748e-05,2]
[343941022,1733111433204,-378.50544684,7.749e-05,2]
[343941023,1733111433217,-31.76455316,7.749e-05,2]
[343941024,1733111433228,-150.0,7.75e-05,2]
[343941025,1733111433238,-194.51863934,7.75e-05,2]
[343941026,1733111433249,-150.0,7.751e-05,2]
[343941027,1733111433259,-150.0,7.753e-05,2]
[343941028,1733111433269,-150.0,7.754e-05,2]
[343941029,1733111433280,-150.0,7.759e-05,2]
[343941030,1733111433290,-150.0,7.76e-05,2]
[343941031,1733111433301,-150.0,7.763e-05,2]
[343941032,1733111433311,-150.0,7.768e-05,2]
[343941033,1733111433322,-150.0,7.769e-05,2]
[343941034,1733111433333,-275.94,7.77e-05,2]
[343941035,1733111433349,-150.0,7.771e-05,2]
[343941036,1733111433359,-150.0,7.771e-05,2]
[343941037,1733111433369,-150.0,7.774e-05,2]
[343941038,1733111433379,-973.53,7.78e-05,2]
[343941039,1733111433389,-150.0,7.78e-05,2]
[343941040,1733111433400,-150.0,7.787e-05,2]
[343941041,1733111433411,-150.0,7.79e-05,2]
[343941042,1733111433421,-150.0,7.79e-05,2]
[343941043,1733111433432,-150.0,7.79e-05,2]
[343941044,1733111433442,-150.0,7.791e-05,2]
[343941045,1733111433452,-150.0,7.794e-05,2]
[343941046,1733111433462,-150.0,7.794e-05,2]
[343941047,1733111433472,-150.0,7.795e-05,2]
[343941048,1733111433482,-150.0,7.8e-05,2]
[343941049,1733111433492,-150.0,7.804e-05,2]
[343941050,1733111433502,-150.0,7.815e-05,2]
[343941051,1733111433512,-150.0,7.815e-05,2]
[343941052,1733111433522,-150.0,7.816e-05,2]
[343941053,1733111433532,-150.0,7.817e-05,2]
[343941054,1733111433542,-150.0,7.82e-05,2]
[343941055,1733111433553,-150.0,7.823e-05,2]
[343941056,1733111433563,-150.0,7.825e-05,2]
[343941057,1733111433574,-150.0,7.826e-05,2]
[343941058,1733111433584,-150.0,7.827e-05,2]
[343941059,1733111433594,-150.0,7.827e-05,2]
[343941060,1733111433604,-150.0,7.828e-05,2]
[343941061,1733111433615,-150.0,7.828e-05,2]
[343941062,1733111433625,-150.0,7.83e-05,2]
[343941063,1733111433636,-150.0,7.831e-05,2]
[343941064,1733111433646,-150.0,7.833e-05,2]
[343941065,1733111433663,-150.0,7.839e-05,2]
[343941066,1733111433675,-150.0,7.839e-05,2]
[343941067,1733111433686,-150.0,7.84e-05,2]
[343941068,1733111433696,-150.0,7.84e-05,2]
[343941069,1733111433707,-150.0,7.841e-05,2]
[343941070,1733111433717,-150.0,7.842e-05,2]
[343941071,1733111433728,-150.0,7.846e-05,2]
[343941072,1733111433739,-150.0,7.847e-05,2]
[343941073,1733111433749,-150.0,7.856e-05,2]
[343941074,1733111433760,-150.0,7.864e-05,2]
[343941075,1733111433771,-150.0,7.869e-05,2]
[343941076,1733111433782,-150.0,7.879e-05,2]
[343941077,1733111433795,-150.0,7.88e-05,2]
[343941078,1733111433806,-150.0,7.883e-05,2]
[343941079,1733111433817,-150.0,7.883e-05,2]
[343941080,1733111433828,-150.0,7.886e-05,2]
[343941081,1733111433839,-150.0,7.887e-05,2]
[343941082,1733111433850,-150.0,7.889e-05,2]
[343941083,1733111433861,-150.0,7.89e-05,2]
[343941084,1733111433873,-150.0,7.894e-05,2]
[343941085,1733111433884,-150.0,7.895e-05,2]
[343941086,1733111433896,-150.0,7.896e-05,2]
[343941087,1733111433909,-2500.0,7.9e-05,2]
[343941088,1733111433921,-150.0,7.905e-05,2]
[343941089,1733111433932,-150.0,7.905e-05,2]
[343941090,1733111433942,-150.0,7.908e-05,2]
[343941091,1733111433953,-150.0,7.913e-05,2]
[343941092,1733111433964,-150.0,7.915e-05,2]
[343941093,1733111433975,-150.0,7.92e-05,2]
[343941094,1733111433986,-150.0,7.923e-05,2]
[343941095,1733111433998,-150.0,7.927e-05,2]
[343941096,1733111434008,-150.0,7.929e-05,2]
[343941097,1733111434018,-150.0,7.932e-05,2]
[343941098,1733111434028,-150.0,7.932e-05,2]
[343941099,1733111434039,-150.0,7.936e-05,2]
[343941100,1733111434050,-150.0,7.937e-05,2]
[343941101,1733111434061,-150.0,7.937e-05,2]
[343941102,1733111434072,-150.0,7.94e-05,2]
[343941103,1733111434082,-150.0,7.941e-05,2]
[343941104,1733111434093,-150.0,7.941e-05,2]
[343941105,1733111434103,-150.0,7.941e-05,2]
[343941106,1733111434113,-150.0,7.949e-05,2]
[343941107,1733111434124,-150.0,7.952e-05,2]
[343941108,1733111434135,-150.0,7.956e-05,2]
[343941109,1733111434145,-150.0,7.959e-05,2]
[343941110,1733111434157,-150.0,7.969e-05,2]
[343941111,1733111434167,-150.0,7.972e-05,2]
[343941112,1733111434178,-150.0,7.972e-05,2]
[343941113,1733111434189,-1306.912,7.978e-05,2]
[343941114,1733111434199,-150.0,7.978e-05,2]
[343941115,1733111434209,-150.0,7.979e-05,2]
[343941116,1733111434219,-150.0,7.981e-05,2]
[343941117,1733111434229,-150.0,7.988e-05,2]
[343941118,1733111434240,-1261.0,7.999e-05,2]
[343941119,1733111434250,-355.962,7.999e-05,2]
[343941120,1733111434261,-976.0,7.999e-05,2]
[343941121,1733111434271,-270.197,7.999e-05,2]
[343941122,1733111434281,-150.0,7.999e-05,2]
[343941123,1733111434291,-150.0,7.999e-05,2]
[343941124,1733111434301,-227.0,7.999e-05,2]
[343941125,1733111434311,-153.27,7.999e-05,2]
[343941126,1733111434321,-2620.65113324,7.999e-05,2]
[343941127,1733111434411,-2874.2235,7.999e-05,2]
[343941128,1733111434423,-3931.71436676,7.999e-05,2]
[343941129,1733111434435,-166.0,7.999e-05,2]
[343941130,1733111434446,-2572.147,7.999e-05,2]
[343941131,1733111434456,-151.094,7.999e-05,2]
[343941132,1733111434465,-157.0,7.999e-05,2]
[343941133,1733111434475,-1096.0,7.999e-05,2]
[343941134,1733111434485,-666.58,7.999e-05,2]
[343941135,1733111434496,-3292.43,7.999e-05,2]
[343941136,1733111434506,-2000.0,7.999e-05,2]
[343941137,1733111434516,-500.0,7.999e-05,2]
[343941138,1733111434526,-196.22888954,7.999e-05,2]
[343941139,1733111434536,-500.0,7.999e-05,2]
[343941140,1733111434547,-495.18715035,7.999e-05,2]
[343941141,1733111434557,-500.0,7.999e-05,2]
[343941142,1733111434568,-500.0,7.999e-05,2]
[343941143,1733111434578,-500.0,7.999e-05,2]
[343941144,1733111434588,-500.0,7.999e-05,2]
[343941145,1733111434598,-500.0,7.999e-05,2]
[343941146,1733111434608,-60117.49788811,8e-05,2]
[343941148,1733111438167,-150.0,7.911e-05,2]
[343941149,1733111438176,-13365.16195671,8e-05,2]
[343941150,1733111438190,-18419.81776428,8e-05,2]
[343941152,1733111438202,-681.64564164,8e-05,2]
[343941153,1733111438213,-1374.20533368,8e-05,2]
[343941154,1733111438523,-567.48974055,8e-05,2]
[343941155,1733111438535,-3719.62362719,8e-05,2]
[343941156,1733111438547,-3739.24518042,8e-05,2]
[343941157,1733111438559,-5523.72957211,8e-05,2]
[343941158,1733111438574,-381.48236492,8e-05,2]
[343941159,1733111438586,-702.11471286,8e-05,2]
[343941178,1733111440151,-325731.76249163,8e-05,2]
[343941185,1733111440571,-253.94130098,8e-05,2]
[343941188,1733111440583,-1160.04,8e-05,2]
[343941202,1733111445039,-150.0,7.785e-05,2]
[343941203,1733111445049,-150.0,7.803e-05,2]
[343941204,1733111445059,-48.705,7.809e-05,2]
[343941205,1733111445071,-101.295,7.809e-05,2]
[343941206,1733111445081,-150.0,7.83e-05,2]
[343941207,1733111445091,-150.0,7.878e-05,2]
[343941208,1733111445100,-150.0,7.942e-05,2]
[343941209,1733111445111,-150.0,7.994e-05,2]
[343941210,1733111445121,-4132.359,8e-05,2]
[343941211,1733111445134,-10326814.9198837,8e-05,2]
[343941212,1733111445146,-106836.72150641,8e-05,2]
[343941213,1733111445158,-2980.03334991,8e-05,2]
[343941214,1733111445241,-150.0,7.84e-05,2]
[343941215,1733111445252,-150.0,7.958e-05,2]
[343941216,1733111445262,-150.0,7.971e-05,2]
[343941217,1733111445272,-227175.0,8e-05,2]
[343941218,1733111445284,-194236.0,8e-05,2]
[343941219,1733111445297,-1053.81452464,8e-05,2]
[343941220,1733111445308,-2779.099092,8e-05,2]
[343941221,1733111445320,-622.95743368,8e-05,2]
[343941222,1733111445331,-23199.94897752,8e-05,2]
[343941223,1733111445344,-5440.74805607,8e-05,2]
[343941224,1733111445356,-2641.35990475,8e-05,2]
[343941225,1733111445366,-1965.05073931,8e-05,2]
[343941243,1733111446358,-150.0,7.764e-05,2]
[343941244,1733111446369,-150.0,7.782e-05,2]
[343941245,1733111446381,-150.0,7.785e-05,2]
[343941246,1733111446391,-150.0,7.838e-05,2]
[343941247,1733111446402,-150.0,7.884e-05,2]
[343941248,1733111446413,-150.0,7.933e-05,2]
[343941249,1733111446424,-150.0,7.984e-05,2]
[343941250,1733111446434,-150.0,7.985e-05,2]
[343941251,1733111446444,-150.0,7.998e-05,2]
[343941252,1733111446455,-2514.6754522,8e-05,2]
[343941253,1733111446468,-1758.0,8e-05,2]
[343941254,1733111446480,-2177.93330762,8e-05,2]
[343941255,1733111446493,-2725.0,8e-05,2]
[343941256,1733111446721,-1865.38434178,8e-05,2]
[343941258,1733111446733,-808.18555472,8e-05,2]
[343941260,1733111446746,-88785.66405363,8e-05,2]
[343941993,1733111828545,8932.38,7.144e-05,2]
[343941994,1733111974274,635.01648693,7e-05,2]
[343941995,1733112003447,9700.11664622,7e-05,2]
[343941996,1733112345130,250.0,6.869e-05,2]
[343942823,1733112576668,46431.0,5e-05,3]
[343942866,1733112632090,-463.18,7.17e-05,2]
[343942869,1733112632100,-965.02139994,7.386e-05,2]
[343942871,1733112632115,-1768.36860006,7.386e-05,2]
[343942873,1733112632125,-1260.976,7.546e-05,2]
[343942875,1733112632135,-300.0,7.546e-05,2]
[343942877,1733112632145,-2227.87130455,7.547e-05,2]
[343942879,1733112632156,-304.45683003,7.547e-05,2]
[343942894,1733112633822,-965.0,7.547e-05,2]
[343942895,1733112633877,-4795.67186542,7.547e-05,2]
[343942896,1733112633887,-2500.0,7.6e-05,2]
[343942897,1733112633897,-6516.0,7.671e-05,2]
[343942898,1733112633907,-500.0,7.673e-05,2]
[343942899,1733112633917,-630.61,7.68e-05,2]
[343942900,1733112633928,-973.53,7.68e-05,2]
[343942901,1733112633938,-1000.0,7.699e-05,2]
[343942902,1733112633948,-176.89544316,7.699e-05,2]
[343942903,1733112633959,-247.51599665,7.699e-05,2]
[343942904,1733112633969,-443.90968337,7.699e-05,2]
[343942905,1733112633979,-2548.02,7.699e-05,2]
[343942906,1733112633989,-147636.50925776,7.7e-05,2]
[343942907,1733112634001,-110685.0,7.7e-05,2]
[343942908,1733112634014,-19304.0,7.7e-05,2]
[343942909,1733112634027,-16193.36532765,7.7e-05,2]
[343942910,1733112634040,-16686.6483,7.7e-05,2]
[343942911,1733112634053,-1251784.06618403,7.7e-05,2]
[343942912,1733112634096,-4767.13483188,7.7e-05,2]
[343942914,1733112634232,-2916.37155203,7.7e-05,2]
[343943069,1733112637749,331.94,6.871e-05,2]
[343943079,1733112638021,-19105.30420569,7.7e-05,2]
[343943081,1733112638033,-26970.24908561,7.7e-05,2]
[343943085,1733112638081,-4289.85659,7.7e-05,2]
[343943086,1733112638093,-2173.92161995,7.7e-05,2]
[343943087,1733112638106,-4171.31162782,7.7e-05,2]
[343943088,1733112638242,-590.18487266,7.7e-05,2]
[343943089,1733112638254,-799.15048561,7.7e-05,2]
[343943090,1733112638266,-1172.88415707,7.7e-05,2]
[343943091,1733112638278,-873.19219818,7.7e-05,2]
[343943092,1733112638289,-228794.04037019,7.7e-05,2]
[343943093,1733112638309,-6129.23202408,7.7e-05,2]
[343943339,1733112640714,-386.004,7.7e-05,2]
[343943344,1733112640760,-844.59783574,7.7e-05,2]
[343943455,1733112641908,-688.88999997,7.7e-05,2]
[343943461,1733112641962,-11049.61104261,7.7e-05,2]
[343943468,1733112642018,-119782.67502033,7.7e-05,2]
[343943480,1733112642127,-1045.96436637,7.7e-05,2]
[343943510,1733112643119,-4039.6330546,7.7e-05,2]
[343943511,1733112643652,-524109.0793526,7.7e-05,2]
[343943512,1733112643664,-9665.8,7.7e-05,2]
[343943513,1733112643680,-1643.541192,7.7e-05,2]
[343943514,1733112643693,-19304.0,7.7e-05,2]
[343943515,1733112643714,-284.76118321,7.7e-05,2]